fUSD/lending_fUSD_20240513
["ID","MTS","AMOUNT","RATE_DAILY","PERIOD"]
[326943261,1715633440099,-151.79,0.0001299,2]
[326943262,1715633440109,-151.79,0.0001299,2]
[326943263,1715633440119,-153.3481481,0.00012996,2]
[326943264,1715633440128,-3279.47094658,0.00012998,2]
[326943265,1715633440138,-161.73293461,0.00012999,2]
[326943266,1715633440148,-500.0,0.00012999,2]
[326943267,1715633440157,-500.0,0.00012999,2]
[326943269,1715633440166,-500.0,0.00012999,2]
[326943270,1715633440176,-500.0,0.00012999,2]
[326943271,1715633440188,-500.0,0.00012999,2]
[326943272,1715633440200,-500.0,0.00012999,2]
[326943273,1715633440210,-500.0,0.00012999,2]
[326943274,1715633440219,-500.0,0.00012999,2]
[326943275,1715633440229,-500.0,0.00012999,2]
[326943276,1715633440238,-553.6598462,0.00012999,2]
[326943277,1715633440248,-217177.69395797,0.00013,2]
[326943278,1715633440261,-696.92,0.00013,2]
[326943279,1715633440279,-376.54419998,0.00013,2]
[326943280,1715633440291,-17058.41804389,0.00013,2]
[326943281,1715633440304,-1578.0861199,0.00013,2]
[326943282,1715633440316,-1283.66892838,0.00013,2]
[326943283,1715633440327,-266.51398,0.00013,2]
[326943284,1715633440340,-323.405,0.00013,2]
[326943294,1715633442677,-289.89066407,0.00013,2]
[326943297,1715633442998,-756.0897225,0.00013,2]
[326943298,1715633443010,-945.39358411,0.00013,2]
[326943299,1715633443022,-318768.5225262,0.00013,2]
[326943300,1715633443031,-227270.39510771,0.00013,2]
[326943301,1715633443043,-295.00000001,0.00013,2]
[326943303,1715633445793,-155.0,0.00012999,2]
[326943304,1715633445802,-3029.47986387,0.00013,2]
[326943305,1715633445896,-358.33608691,0.00013,2]
[326943377,1715633488027,600.0,9.75e-05,2]
[326943378,1715633710931,173.94,9.398e-05,2]
[326943379,1715633757398,-298.0,0.0001145,2]
[326943380,1715633757421,-485.422,0.00011597,2]
[326943381,1715633757447,-185.88,0.00011777,2]
[326943382,1715633757471,-5559.62558201,0.00011899,2]
[326943383,1715633757494,-298.0,0.000119,2]
[326943384,1715633757521,-154.94,0.00012087,2]
[326943385,1715633757551,-154.94,0.00012166,2]
[326943386,1715633757576,-154.94,0.00012244,2]
[326943387,1715633757603,-154.94,0.00012323,2]
[326943388,1715633757629,-6257.1510482,0.00012348,7]
[326943389,1715633757653,-205.0,0.0001235,2]
[326943390,1715633757677,-298.0,0.0001235,2]
[326943391,1715633757701,-2819.368484,0.00012394,2]
[326943392,1715633757724,-226.669976,0.00012394,2]
[326943393,1715633757749,-154.94,0.00012402,2]
[326943394,1715633757773,-154.94,0.0001248,2]
[326943395,1715633757797,-2819.368484,0.00012549,2]
[326943396,1715633757821,-226.669976,0.00012549,2]
[326943397,1715633757845,-154.94,0.00012559,2]
[326943398,1715633757869,-500.0,0.00012602,2]
[326943399,1715633757894,-154.94,0.00012638,2]
[326943400,1715633757918,-2819.368484,0.00012704,2]
[326943401,1715633757941,-226.669976,0.00012704,2]
[326943402,1715633757965,-1980.52,0.00012704,2]
[326943403,1715633757988,-154.94,0.00012717,2]
[326943404,1715633758011,-205.0,0.000128,2]
[326943405,1715633758033,-298.0,0.000128,2]
[326943406,1715633758056,-2819.368484,0.00012859,2]
[326943407,1715633758080,-226.669976,0.00012859,2]
[326943408,1715633758104,-11736.71382355,0.00012869,2]
[326943409,1715633758128,-176.64682628,0.00012869,2]
[326943410,1715633758151,-2116.01877,0.0001287,2]
[326943411,1715633758175,-500.0,0.00012876,2]
[326943412,1715633758198,-388.0,0.00012876,2]
[326943413,1715633779454,-200.0,0.00012896,2]
[326943414,1715633779478,-1000.0,0.00012896,2]
[326943415,1715633779500,-358.55514351,0.000129,2]
[326943416,1715633779524,-31313.7308,0.000129,2]
[326943417,1715633787590,-2872.28594351,0.000129,2]
[326943418,1715633789886,-2872.28594351,0.000129,2]
[326943429,1715634631759,-250.0,0.0001208,2]
[326943430,1715634631770,-1286.45624291,0.00012186,2]
[326943431,1715634631781,-4273.1693391,0.00012186,2]
[326943432,1715634631791,-1284.63163326,0.00012187,2]
[326943433,1715634631800,-1389.97071281,0.00012189,2]
[326943434,1715634631813,-749.56,0.00012189,2]
[326943435,1715634631825,-1839.86928719,0.00012189,2]
[326943436,1715634631835,-600.0,0.00012221,2]
[326943437,1715634631844,-400.0,0.00012305,2]
[326943438,1715634631854,-500.0,0.00012602,2]
[326943439,1715634631864,-6265.7317,0.000128,2]
[326943440,1715634631873,-176.64682628,0.00012869,2]
[326943441,1715634631882,-265.89148613,0.00012876,2]
[326943442,1715634631891,-21245.54370152,0.0001288,2]
[326943443,1715634631902,-492.81976372,0.00012899,2]
[326943444,1715634631913,-729.84635063,0.000129,2]
[326943445,1715634631924,-387.99999996,0.000129,2]
[326943446,1715634631946,-6914.81186995,0.000129,2]
[326943447,1715634631957,-17647.03538915,0.000129,2]
[326943448,1715634631968,-1086.70850841,0.000129,2]
[326943449,1715634631990,-68689.02599488,0.000129,2]
[326943450,1715634632000,-23182.07941357,0.000129,2]
[326943452,1715634632011,-157.28867493,0.000129,2]
[326943454,1715634632020,-150.0,0.000129,2]
[326943456,1715634632029,-150.0,0.000129,2]
[326943458,1715634632039,-150.58772116,0.000129,2]
[326943460,1715634632048,-568.68631198,0.000129,2]
[326943462,1715634632057,-514.99054699,0.00012997,2]
[326943464,1715634632066,-572.27447341,0.00012998,7]
[326943465,1715634632075,-405.21355048,0.00012998,2]
[326943466,1715634632083,-162.08193255,0.00012998,2]
[326943467,1715634632102,-155.35228503,0.00012998,2]
[326943480,1715634632361,-1727.25423775,0.00012998,2]
[326943481,1715634632376,-200.64558336,0.00012998,2]
[326943482,1715634632385,-534.79759922,0.00012998,2]
[326943483,1715634632394,-194.34268049,0.00012998,2]
[326943484,1715634632404,-156.71208223,0.00012998,2]
[326943485,1715634632413,-155.45749735,0.00012998,2]
[326943486,1715634632422,-2325.27290029,0.00012998,2]
[326943487,1715634632432,-155.76589553,0.00012998,2]
[326943488,1715634632440,-363.81807592,0.00012998,2]
[326943489,1715634632450,-569.00557054,0.00012998,2]
[326943490,1715634632459,-54231.7842949,0.00012998,2]
[326943491,1715634632470,-496.346633,0.00012998,2]
[326943492,1715634632482,-730.35536255,0.00012998,2]
[326943497,1715634637686,-2199.76057497,0.00012998,2]
[326943498,1715634637942,-436.47326611,0.00012998,2]
[326943499,1715634637954,-1629.68005117,0.00012998,2]
[326943521,1715634638256,-28633.03765267,0.00012998,2]
[326943576,1715634640163,-338473.98772455,0.00012998,2]
[326943577,1715634640173,-750.52330383,0.00012999,2]
[326943578,1715634640183,-155.0,0.00012999,2]
[326943579,1715634640192,-8358.14832076,0.00012999,2]
[326943580,1715634640201,-263.31153257,0.00012999,2]
[326943581,1715634640210,-265.82545038,0.00012999,2]
[326943582,1715634640219,-500.0,0.00012999,2]
[326943583,1715634640229,-513.0,0.00012999,2]
[326943584,1715634640240,-573876.71148052,0.00013,2]
[326943585,1715634640250,-8293874.937623,0.00013,2]
[326943586,1715634640260,-1019394.36344869,0.00013,2]
[326943587,1715634640285,-640.01,0.00013,2]
[326943588,1715634640321,-331.63639484,0.00013,2]
[326943604,1715634642903,-13156.42869746,0.00013,2]
[326943605,1715634643242,-546038.91763391,0.00013,2]
[326943609,1715634645786,-47014.55484993,0.00013,2]
[326943610,1715634645798,-28114.39528322,0.00013,2]
[326943611,1715634645809,-169420.7875665,0.00013,2]
[326943612,1715634645824,-27133.58466313,0.00013,2]
[326943613,1715634646088,-663916.70232739,0.00013,2]
[326943614,1715634646101,-3158.82788,0.00013,2]
[326943615,1715634664137,506.7,0.00010959,2]
[326943628,1715635832960,-400.0,0.00011609,2]
[326943629,1715635832972,-335.55356,0.00011609,2]
[326943630,1715635833117,-508.81858617,0.00011609,2]
[326943631,1715635833127,-379.5490353,0.0001161,2]
[326943632,1715635833139,-2164.41014805,0.0001161,2]
[326943633,1715635833150,-550.41661248,0.0001171,2]
[326943634,1715635833162,-234.69981702,0.00011711,2]
[326943635,1715635833171,-2651.92,0.00011839,2]
[326943636,1715635833181,-250.0,0.00011882,2]
[326943637,1715635833191,-150.0,0.00011911,2]
[326943638,1715635833202,-1356.52,0.00012037,2]
[326943639,1715635833211,-1000.0,0.00012111,2]
[326943640,1715635833221,-912.13,0.000122,2]
[326943641,1715635833231,-150.0,0.00012393,2]
[326943642,1715635833241,-150.0,0.00012393,2]
[326943643,1715635833252,-267.146698,0.00012394,2]
[326943644,1715635833261,-282.84,0.00012438,2]
[326943645,1715635833270,-4547.30345875,0.00012438,2]
[326943647,1715635833278,-5452.68654125,0.00012438,2]
[326943649,1715635833286,-150.99,0.00012438,2]
[326943651,1715635833295,-9999.99,0.00012438,2]
[326943654,1715635833304,-999.99,0.00012438,2]
[326943656,1715635833313,-150.0,0.00012449,2]
[326943658,1715635833322,-165.91,0.00012485,2]
[326943659,1715635833328,-299.99,0.00012485,2]
[326943661,1715635833335,-500.0,0.00012602,2]
[326943663,1715635833342,-186.71,0.00012616,2]
[326943665,1715635833350,-1560.32144644,0.00012627,2]
[326943667,1715635833359,-1491.9886912,0.00012666,2]
[326943669,1715635833368,-551.1046,0.000128,2]
[326943672,1715635833377,-1876.01075265,0.000128,2]
[326943675,1715635833400,-5632.53924735,0.000128,2]
[326943677,1715635833409,-9832.34195956,0.00012869,2]
[326943679,1715635833418,-200.0,0.00012896,2]
[326943681,1715635833428,-1000.0,0.00012896,2]
[326943683,1715635833437,-499.99,0.00012896,2]
[326943685,1715635833447,-754.65939397,0.00012898,2]
[326943688,1715635833457,-6282.65582321,0.00012898,2]
[326943691,1715635833468,-450.037073,0.00012898,2]
[326943695,1715635833480,-4822.69,0.00012898,2]
[326943696,1715635833506,-81745.73320379,0.00012898,2]
[326943697,1715635833516,-754.65939395,0.00012899,2]
[326943698,1715635833526,-177.44367573,0.00012899,2]
[326943699,1715635833534,-172.5422854,0.00012899,2]
[326943700,1715635833544,-754.65939395,0.00012899,2]
[326943701,1715635833554,-194.48369157,0.000129,2]
[326943702,1715635833564,-3998.23418724,0.000129,2]
[326943703,1715635833575,-1000.0,0.000129,2]
[326943704,1715635833585,-383.72460685,0.000129,2]
[326943705,1715635833596,-500.0,0.00012928,2]
[326943706,1715635833606,-500.0,0.00012928,2]
[326943707,1715635833616,-500.0,0.00012928,2]
[326943708,1715635833626,-500.0,0.00012928,2]
[326943709,1715635833635,-249805.87356981,0.00012929,2]
[326943710,1715635833646,-500.0,0.00012929,2]
[326943711,1715635833658,-500.0,0.00012929,2]
[326943712,1715635833668,-500.0,0.00012929,2]
[326943713,1715635833679,-500.0,0.00012929,2]
[326943714,1715635833690,-26782.34723343,0.0001293,6]
[326943715,1715635833702,-1386.56964087,0.0001293,6]
[326943716,1715635833714,-308.14008547,0.0001293,6]
[326943736,1715635837983,-210.77335016,0.00012928,2]
[326943737,1715635837992,-500.0,0.00012928,2]
[326943738,1715635838001,-112.67171134,0.00012929,2]
[326943739,1715635838012,-387.32828866,0.00012929,2]
[326943740,1715635838022,-2800.52171134,0.0001293,6]
[326943741,1715635838034,-451.57864314,0.0001293,6]
[326943742,1715635838045,-211219.55360121,0.0001293,6]
[326943743,1715635838055,-200.0,0.00012935,2]
[326943744,1715635838065,-264.82133589,0.00012935,2]
[326943745,1715635838076,-37793.0,0.0001297,2]
[326943746,1715635838087,-328.49863271,0.0001297,2]
[326943747,1715635838099,-26.04636729,0.0001297,2]
[326943748,1715635838110,-1227.0,0.0001297,2]
[326943749,1715635838119,-428.20829024,0.0001299,2]
[326943750,1715635838128,-500.0,0.00012994,2]
[326943751,1715635838139,-500.0,0.00012994,2]
[326943752,1715635838149,-500.0,0.00012994,2]
[326943753,1715635838163,-500.0,0.00012994,2]
[326943754,1715635838172,-500.0,0.00012994,2]
[326943755,1715635838183,-71.00282484,0.00012994,2]
[326943756,1715635838195,-428.99717516,0.00012994,2]
[326943757,1715635838206,-217.28785713,0.00012994,2]
[326943758,1715635838219,-282.71214287,0.00012994,2]
[326943759,1715635838228,-257.13023826,0.00012994,2]
[326943760,1715635838244,-242.86976174,0.00012994,2]
[326943761,1715635838254,-59.65202298,0.00012994,2]
[326943762,1715635838294,-440.34797702,0.00012994,2]
[326943763,1715635838304,-500.0,0.00012994,2]
[326943764,1715635838314,-500.0,0.00012994,2]
[326943765,1715635838323,-546.32,0.00012994,2]
[326943766,1715635838334,-500.0,0.00012994,2]
[326943767,1715635838343,-500.0,0.00012994,2]
[326943768,1715635838352,-71.00983429,0.00012994,2]
[326943772,1715635840278,-500.0,0.00012928,2]
[326943773,1715635840288,-500.0,0.00012929,2]
[326943774,1715635840297,-428.99016571,0.00012994,2]
[326943775,1715635840307,-500.0,0.00012994,2]
[326943776,1715635840316,-500.0,0.00012994,2]
[326943777,1715635840326,-500.0,0.00012994,2]
[326943778,1715635840336,-507.88232033,0.00012994,2]
[326943779,1715635840345,-500.0,0.00012994,2]
[326943780,1715635840354,-500.0,0.00012994,2]
[326943781,1715635840364,-621.41,0.00012994,2]
[326943782,1715635840373,-451.55281481,0.00012994,2]
[326943783,1715635840382,-500.0,0.00012994,2]
[326943784,1715635840391,-500.0,0.00012994,2]
[326943785,1715635840401,-500.0,0.00012994,2]
[326943786,1715635840410,-429.13987815,0.00012994,2]
[326943787,1715635840422,-70.86012185,0.00012994,2]
[326943788,1715635840431,-508.452593,0.00012994,2]
[326943789,1715635840441,-500.0,0.00012994,2]
[326943790,1715635840450,-500.0,0.00012994,2]
[326943791,1715635840459,-500.0,0.00012994,2]
[326943792,1715635840469,-500.0,0.00012994,2]
[326943793,1715635840478,-424.08306849,0.00012994,2]
[326943794,1715635842553,-500.0,0.00012928,2]
[326943795,1715635842563,-75.91693151,0.00012994,2]
[326943796,1715635842572,-115.40306793,0.00012994,2]
[326943802,1715635843195,-384.59693207,0.00012994,2]
[326943803,1715635843205,-500.0,0.00012994,2]
[326943804,1715635843215,-500.0,0.00012994,2]
[326943805,1715635843225,-500.0,0.00012994,2]
[326943806,1715635843237,-500.0,0.00012994,2]
[326943807,1715635843247,-500.0,0.00012994,2]
[326943808,1715635843256,-500.0,0.00012994,2]
[326943809,1715635843266,-500.0,0.00012994,2]
[326943810,1715635843276,-353.86104851,0.00012994,2]
[326943811,1715635843386,-146.13895149,0.00012994,2]
[326943813,1715635843395,-500.0,0.00012994,2]
[326943815,1715635843404,-500.0,0.00012994,2]
[326943817,1715635843413,-500.0,0.00012995,2]
[326943819,1715635843422,-500.0,0.00012995,2]
[326943820,1715635843431,-500.0,0.00012995,2]
[326943821,1715635843440,-500.0,0.00012995,2]
[326943822,1715635843449,-497.89,0.00012995,2]
[326943823,1715635843459,-500.0,0.00012995,2]
[326943824,1715635843468,-500.0,0.00012995,2]
[326943825,1715635843478,-507.4987605,0.00012995,2]
[326943826,1715635843488,-500.0,0.00012995,2]
[326943827,1715635843498,-500.0,0.00012995,2]
[326943828,1715635843507,-500.0,0.00012995,2]
[326943829,1715635843516,-500.0,0.00012995,2]
[326943830,1715635843528,-538.0,0.00012995,2]
[326943831,1715635843537,-500.0,0.00012995,2]
[326943832,1715635843546,-500.0,0.00012995,2]
[326943833,1715635843557,-500.0,0.00012995,2]
[326943834,1715635843567,-1973.24,0.00012995,2]
[326943835,1715635843576,-500.0,0.00012995,2]
[326943836,1715635843586,-500.0,0.00012995,2]
[326943837,1715635843595,-500.0,0.00012995,2]
[326943838,1715635843606,-500.0,0.00012995,2]
[326943839,1715635843615,-500.0,0.00012995,2]
[326943840,1715635843624,-500.0,0.00012995,2]
[326943841,1715635843634,-500.0,0.00012995,2]
[326943842,1715635843643,-500.0,0.00012995,2]
[326943843,1715635843652,-500.0,0.00012995,2]
[326943844,1715635843663,-500.0,0.00012995,2]
[326943845,1715635843672,-500.0,0.00012995,2]
[326943846,1715635843681,-500.0,0.00012995,2]
[326943847,1715635843691,-500.0,0.00012995,2]
[326943848,1715635843700,-500.0,0.00012995,2]
[326943849,1715635843710,-500.0,0.00012995,2]
[326943850,1715635843719,-500.0,0.00012995,2]
[326943851,1715635843728,-500.0,0.00012995,2]
[326943852,1715635843737,-500.0,0.00012995,2]
[326943853,1715635843746,-500.0,0.00012995,2]
[326943854,1715635843755,-500.0,0.00012995,2]
[326943855,1715635843765,-500.0,0.00012995,2]
[326943856,1715635843775,-500.0,0.00012995,2]
[326943857,1715635843784,-500.0,0.00012995,2]
[326943858,1715635843793,-500.0,0.00012995,2]
[326943859,1715635843803,-500.0,0.00012995,2]
[326943860,1715635843812,-500.0,0.00012995,2]
[326943861,1715635843821,-500.0,0.00012995,2]
[326943862,1715635843831,-500.0,0.00012995,2]
[326943863,1715635843840,-500.0,0.00012995,2]
[326943864,1715635843849,-500.0,0.00012995,2]
[326943865,1715635843858,-544.07,0.00012995,2]
[326943866,1715635843867,-500.0,0.00012995,2]
[326943867,1715635843876,-500.0,0.00012995,2]
[326943868,1715635843885,-500.0,0.00012995,2]
[326943869,1715635843895,-500.0,0.00012995,2]
[326943870,1715635843904,-500.0,0.00012995,2]
[326943871,1715635843913,-500.0,0.00012995,2]
[326943872,1715635843922,-3088.45,0.00012995,2]
[326943873,1715635843932,-500.0,0.00012995,2]
[326943874,1715635843941,-500.0,0.00012995,2]
[326943875,1715635843950,-500.0,0.00012995,2]
[326943876,1715635843959,-500.0,0.00012995,2]
[326943877,1715635843969,-500.0,0.00012995,2]
[326943878,1715635843978,-500.0,0.00012995,2]
[326943879,1715635843987,-500.0,0.00012995,2]
[326943880,1715635843996,-500.0,0.00012995,2]
[326943881,1715635844006,-500.0,0.00012995,2]
[326943882,1715635844015,-500.0,0.00012995,2]
[326943883,1715635844025,-500.0,0.00012995,2]
[326943884,1715635844034,-500.0,0.00012995,2]
[326943885,1715635844043,-500.0,0.00012995,2]
[326943886,1715635844052,-500.0,0.00012995,2]
[326943887,1715635844062,-500.0,0.00012995,2]
[326943888,1715635844070,-500.0,0.00012995,2]
[326943889,1715635844079,-500.0,0.00012995,2]
[326943890,1715635844088,-500.0,0.00012995,2]
[326943891,1715635844097,-500.0,0.00012995,2]
[326943892,1715635844106,-500.0,0.00012995,2]
[326943893,1715635844115,-500.0,0.00012995,2]
[326943894,1715635844124,-500.0,0.00012995,2]
[326943895,1715635844135,-543.60936308,0.00012995,2]
[326943896,1715635844144,-213.92437764,0.00012995,2]
[326943897,1715635844157,-500.0,0.00012995,2]
[326943898,1715635844169,-500.0,0.00012995,2]
[326943899,1715635844179,-500.0,0.00012995,2]
[326943900,1715635844189,-500.0,0.00012995,2]
[326943901,1715635844199,-500.0,0.00012995,2]
[326943902,1715635844208,-500.0,0.00012995,2]
[326943903,1715635844218,-500.0,0.00012995,2]
[326943904,1715635844227,-500.0,0.00012995,2]
[326943905,1715635844239,-500.0,0.00012995,2]
[326943906,1715635844248,-500.0,0.00012995,2]
[326943907,1715635844259,-500.0,0.00012995,2]
[326943908,1715635844270,-500.0,0.00012995,2]
[326943909,1715635844279,-500.0,0.00012995,2]
[326943910,1715635844288,-500.0,0.00012995,2]
[326943911,1715635844297,-500.0,0.00012995,2]
[326943912,1715635844306,-500.0,0.00012996,2]
[326943913,1715635844315,-500.0,0.00012996,2]
[326943914,1715635844324,-500.0,0.00012996,2]
[326943915,1715635844334,-500.0,0.00012996,2]
[326943916,1715635844343,-500.0,0.00012996,2]
[326943917,1715635844352,-578.18,0.00012996,2]
[326943918,1715635844361,-500.0,0.00012996,2]
[326943919,1715635844370,-500.0,0.00012996,2]
[326943920,1715635844379,-500.0,0.00012996,2]
[326943921,1715635844388,-500.0,0.00012996,2]
[326943922,1715635844398,-500.0,0.00012996,2]
[326943923,1715635844407,-500.0,0.00012996,2]
[326943924,1715635844416,-500.0,0.00012996,2]
[326943925,1715635844425,-500.0,0.00012996,2]
[326943926,1715635844434,-500.0,0.00012996,2]
[326943927,1715635844443,-500.0,0.00012996,2]
[326943928,1715635844453,-521.27987143,0.00012996,2]
[326943929,1715635844462,-500.0,0.00012996,2]
[326943930,1715635844471,-500.0,0.00012996,2]
[326943931,1715635844480,-500.0,0.00012996,2]
[326943932,1715635844489,-500.0,0.00012996,2]
[326943933,1715635844498,-464.41,0.00012996,2]
[326943934,1715635844507,-500.0,0.00012996,2]
[326943935,1715635844516,-500.0,0.00012996,2]
[326943936,1715635844527,-500.0,0.00012996,2]
[326943937,1715635844536,-256.06,0.00012996,2]
[326943938,1715635844545,-500.0,0.00012996,2]
[326943939,1715635844554,-500.0,0.00012996,2]
[326943940,1715635844563,-561.35915283,0.00012996,2]
[326943941,1715635844572,-500.0,0.00012996,2]
[326943942,1715635844582,-500.0,0.00012996,2]
[326943943,1715635844591,-500.0,0.00012996,2]
[326943944,1715635844600,-511.36242119,0.00012996,2]
[326943945,1715635844608,-500.0,0.00012996,2]
[326943946,1715635844617,-500.0,0.00012996,2]
[326943947,1715635844627,-500.0,0.00012996,2]
[326943948,1715635844636,-500.0,0.00012996,2]
[326943949,1715635844645,-570.32448809,0.00012996,2]
[326943950,1715635844654,-509.07993557,0.00012996,2]
[326943951,1715635844664,-500.0,0.00012996,2]
[326943952,1715635844673,-150.0,0.00012996,2]
[326943953,1715635844682,-500.0,0.00012996,2]
[326943954,1715635844692,-500.0,0.00012996,2]
[326943955,1715635844701,-500.0,0.00012996,2]
[326943956,1715635844710,-500.0,0.00012996,2]
[326943957,1715635844720,-500.0,0.00012996,2]
[326943958,1715635844729,-516.26952458,0.00012996,2]
[326943959,1715635844738,-506.12165387,0.00012996,2]
[326943960,1715635844747,-500.0,0.00012996,2]
[326943961,1715635844756,-500.0,0.00012996,2]
[326943962,1715635844765,-500.0,0.00012996,2]
[326943963,1715635844774,-500.0,0.00012996,2]
[326943964,1715635844783,-507.320158,0.00012996,2]
[326943965,1715635844793,-500.0,0.00012996,2]
[326943966,1715635844803,-500.0,0.00012996,2]
[326943967,1715635844811,-550.61414924,0.00012996,2]
[326943968,1715635844820,-500.0,0.00012996,2]
[326943969,1715635844830,-500.0,0.00012996,2]
[326943970,1715635844839,-500.0,0.00012996,2]
[326943971,1715635844848,-500.0,0.00012996,2]
[326943972,1715635844858,-505.92871675,0.00012996,2]
[326943973,1715635844867,-500.0,0.00012996,2]
[326943974,1715635844876,-500.0,0.00012996,2]
[326943975,1715635844885,-500.0,0.00012996,2]
[326943976,1715635844894,-500.0,0.00012996,2]
[326943977,1715635844903,-500.0,0.00012996,2]
[326943978,1715635844913,-500.0,0.00012996,2]
[326943979,1715635844922,-500.0,0.00012996,2]
[326943980,1715635844931,-409.79,0.00012996,2]
[326943981,1715635844940,-500.0,0.00012996,2]
[326943982,1715635844950,-500.0,0.00012996,2]
[326943983,1715635844959,-500.0,0.00012996,2]
[326943984,1715635844968,-500.0,0.00012996,2]
[326943985,1715635844977,-500.0,0.00012996,2]
[326943986,1715635844986,-500.0,0.00012996,2]
[326943987,1715635844995,-500.0,0.00012996,2]
[326943988,1715635845005,-500.0,0.00012996,2]
[326943989,1715635845014,-500.0,0.00012996,2]
[326943990,1715635845025,-500.0,0.00012996,2]
[326943991,1715635845034,-500.0,0.00012996,2]
[326943992,1715635845045,-500.0,0.00012996,2]
[326943993,1715635845055,-500.0,0.00012996,2]
[326943994,1715635845064,-500.0,0.00012996,2]
[326943995,1715635845074,-500.0,0.00012996,2]
[326943996,1715635845083,-500.0,0.00012996,2]
[326943997,1715635845091,-649.01,0.00012996,2]
[326943998,1715635845101,-500.0,0.00012996,2]
[326943999,1715635845110,-500.0,0.00012996,2]
[326944000,1715635845119,-500.0,0.00012996,2]
[326944001,1715635845128,-299.08255295,0.00012996,2]
[326944002,1715635845137,-609.11483428,0.00012996,2]
[326944003,1715635845146,-500.0,0.00012996,2]
[326944004,1715635845157,-500.0,0.00012996,2]
[326944005,1715635845167,-500.0,0.00012996,2]
[326944006,1715635845176,-500.0,0.00012996,2]
[326944007,1715635845186,-500.0,0.00012996,2]
[326944008,1715635845195,-500.0,0.00012996,2]
[326944009,1715635845205,-500.0,0.00012996,2]
[326944010,1715635845214,-500.0,0.00012996,2]
[326944011,1715635845223,-500.0,0.00012996,2]
[326944012,1715635845234,-500.0,0.00012996,2]
[326944013,1715635845243,-500.0,0.00012996,2]
[326944014,1715635845253,-500.0,0.00012996,2]
[326944015,1715635845262,-598.45070447,0.00012996,2]
[326944016,1715635845271,-500.0,0.00012996,2]
[326944017,1715635845280,-500.0,0.00012996,2]
[326944018,1715635845289,-500.0,0.00012996,2]
[326944019,1715635845298,-500.0,0.00012996,2]
[326944020,1715635845307,-155.0,0.00012996,2]
[326944021,1715635845316,-500.0,0.00012996,2]
[326944022,1715635845327,-500.0,0.00012996,2]
[326944023,1715635845336,-500.0,0.00012996,2]
[326944024,1715635845346,-243.18749239,0.00012996,2]
[326944025,1715635845355,-304.32407033,0.00012996,2]
[326944026,1715635845364,-500.0,0.00012996,2]
[326944027,1715635845374,-500.0,0.00012996,2]
[326944028,1715635845383,-500.0,0.00012996,2]
[326944029,1715635845394,-500.0,0.00012996,2]
[326944030,1715635845404,-766.74074107,0.00012996,2]
[326944031,1715635845414,-500.0,0.00012996,2]
[326944032,1715635845423,-500.0,0.00012996,2]
[326944033,1715635845432,-500.0,0.00012996,2]
[326944034,1715635845442,-500.0,0.00012996,2]
[326944035,1715635845450,-500.0,0.00012996,2]
[326944036,1715635845459,-500.0,0.00012996,2]
[326944037,1715635845468,-500.0,0.00012996,2]
[326944038,1715635845477,-500.0,0.00012996,2]
[326944039,1715635845486,-500.0,0.00012996,2]
[326944040,1715635845495,-500.0,0.00012996,2]
[326944041,1715635845504,-500.0,0.00012996,2]